fUST/lending_fUST_20251019
["ID","MTS","AMOUNT","RATE_DAILY","PERIOD"]
[391814485,1760869802154,300.0,0.00024141,2]
[391814486,1760869802525,300.0,0.00024141,2]
[391814487,1760869804269,1200.0,0.00024141,2]
[391814488,1760869804307,300.0,0.00024141,2]
[391814489,1760869824915,4933.21303428,0.00024142,2]
[391814490,1760869824939,66.78696572,0.00024142,2]
[391814503,1760869832338,272.77061134,0.00024141,2]
[391814505,1760869832375,381.42855013,0.00024141,2]
[391814524,1760869832745,-94613.95221018,0.00024142,2]
[391814526,1760869832754,-150.0,0.00025205,2]
[391814528,1760869832764,-172.5,0.00025805,2]
[391814531,1760869832774,-736.422123,0.00026026,2]
[391814534,1760869832783,-420.0,0.00026176,2]
[391814538,1760869832793,-1680.0,0.00026295,2]
[391814540,1760869832806,-195.0,0.00026405,2]
[391814542,1760869832815,-1116.6237315,0.00026575,2]
[391814543,1760869832824,-217.5,0.00027005,2]
[391814545,1760869832834,-160.0,0.00027555,2]
[391814547,1760869832844,-302.76,0.00027576,10]
[391814548,1760869832854,-363.32,0.00027585,10]
[391814549,1760869832863,-559.84,0.00027586,3]
[391814550,1760869832872,-500.0,0.00027595,2]
[391814551,1760869832881,-500.0,0.00027595,2]
[391814552,1760869832891,-500.0,0.00027595,2]
[391814553,1760869832900,-572.16185654,0.00027595,2]
[391814554,1760869832909,-1200.0,0.00027595,2]
[391814555,1760869832918,-50000.0,0.00027596,2]
[391814556,1760869832927,-468.46,0.000276,2]
[391814557,1760869832937,-409.62698003,0.00027603,2]
[391814558,1760869832946,-500.0,0.00027603,2]
[391814559,1760869832955,-240.0,0.00027605,2]
[391814560,1760869832964,-260.0,0.00028103,2]
[391814561,1760869832974,-262.5,0.00028205,2]
[391814562,1760869832983,-587.0,0.00028382,2]
[391814563,1760869832992,-360.0,0.00028651,2]
[391814564,1760869833001,-285.0,0.00028805,2]
[391814565,1760869833011,-460.0,0.00029199,2]
[391814566,1760869833021,-307.5,0.00029405,2]
[391814567,1760869833030,-330.0,0.00030005,2]
[391814568,1760869833039,-225.192537,0.00030137,120]
[391814569,1760869833053,-210.0,0.00030605,2]
[391814570,1760869833063,-201.36,0.00031,7]
[391814571,1760869833072,-5055.5970946,0.0003398,2]
[391814572,1760869833081,-168.0,0.00038138,2]
[391814573,1760869833090,-237.15,0.00038356,120]
[391814574,1760869833099,-500.0,0.00038697,5]
[391814575,1760869833109,-736.422123,0.00039038,2]
[391814576,1760869833118,-500.0,0.0003908,7]
[391814577,1760869833127,-468.46,0.000391,2]
[391814578,1760869833136,-151.9182964,0.00039131,2]
[391814579,1760869833146,-13684.604931,0.00039897,3]
[391814580,1760869833155,-4376.78029826,0.000399,30]
[391814581,1760869833164,-205.08299969,0.000399,120]
[391814582,1760869833173,-500.0,0.00039902,7]
[391814583,1760869833182,-2134.53,0.00039906,120]
[391814584,1760869833191,-369.15768855,0.00039917,2]
[391814585,1760869833200,-664.48383939,0.00039917,2]
[391814586,1760869833210,-1181.30460336,0.00039917,2]
[391814587,1760869833219,-1845.78844275,0.00039917,2]
[391814588,1760869833228,-2148.41925405,0.00039917,2]
[391814589,1760869834733,481.16745673,0.00024141,2]
[391814590,1760869834760,500.0,0.00024141,2]
[391814591,1760869834807,500.0,0.00024141,2]
[391814592,1760869834834,230.24020628,0.00024141,2]
[391814593,1760869834861,500.0,0.00024141,2]
[391814594,1760869834889,500.0,0.00024141,2]
[391814595,1760869834920,500.0,0.00024141,2]
[391814596,1760869834950,500.0,0.00024141,2]
[391814597,1760869834977,500.0,0.00024141,2]
[391814598,1760869835005,500.0,0.00024141,2]
[391814599,1760869835037,500.0,0.00024141,2]
[391814600,1760869835067,500.0,0.00024141,2]
[391814601,1760869835097,500.0,0.00024141,2]
[391814602,1760869835124,500.0,0.00024141,2]
[391814603,1760869835155,500.0,0.00024141,2]
[391814604,1760869835182,500.0,0.00024141,2]
[391814605,1760869835213,508.11960739,0.00024141,2]
[391814606,1760869835244,500.0,0.00024141,2]
[391814607,1760869835280,205.58174859,0.00024141,2]
[391814608,1760869835314,353.91485382,0.00024141,2]
[391814609,1760869835337,121.91189198,0.00024141,2]
[391814610,1760869835366,500.0,0.00024141,2]
[391814611,1760869835395,239.65122485,0.00024141,2]
[391814612,1760869835431,500.0,0.00024141,2]
[391814613,1760869835464,500.0,0.00024141,2]
[391814614,1760869835495,500.0,0.00024141,2]
[391814615,1760869835522,500.0,0.00024141,2]
[391814616,1760869835555,500.0,0.00024141,2]
[391814617,1760869835586,500.0,0.00024141,2]
[391814618,1760869835612,500.0,0.00024141,2]
[391814647,1760869838601,-153.44959796,0.00025105,2]
[391814649,1760869838611,-500.0,0.00030137,2]
[391814651,1760869838620,-500.0,0.00030137,2]
[391814653,1760869838630,-500.0,0.00030137,2]
[391814655,1760869838639,-500.0,0.00030137,2]
[391814657,1760869838648,-500.0,0.00030137,2]
[391814659,1760869838657,-500.0,0.00030137,2]
[391814661,1760869838666,-500.0,0.00030137,2]
[391814663,1760869838675,-500.0,0.00030137,2]
[391814665,1760869838684,-500.0,0.00030137,2]
[391814667,1760869838693,-327.27336729,0.00030137,2]
[391814669,1760869838702,-509.51610351,0.00039917,2]
[391814671,1760869838711,-3617.74534779,0.00039917,2]
[391814673,1760869838720,-252.97415574,0.00039917,2]
[391814675,1760869838729,-455.35348032,0.00039917,2]
[391814677,1760869838739,-809.51729835,0.00039917,2]
[391814678,1760869838748,-1264.87077868,0.00039917,2]
[391814679,1760869838758,-4725.21841344,0.00039917,2]
[391814680,1760869838767,-1821.41392129,0.00039917,2]
[391814681,1760869838776,-186.6,0.0003999,3]
[391814682,1760869838786,-252.3,0.0003999,10]
[391814683,1760869838794,-1010.0,0.0004,120]
[391814684,1760869838806,-173.217307,0.0004,30]
[391814685,1760869838823,-156.6101,0.0004,30]
[391814686,1760869838833,-307708.06142801,0.0004,120]
[391814687,1760869838849,-1756.27966031,0.0004,120]
[391814688,1760869838861,-643.306526,0.0004,120]
[391814739,1760869846754,-465.74,0.0003989,120]
[391814740,1760869846807,-2156.4,0.0003989,120]
[391814741,1760869856149,500.0,0.00024141,2]
[391814742,1760869856493,500.0,0.00024141,2]
[391814743,1760869856878,372.0798082,0.00024141,2]
[391814753,1760870186477,-199.0,0.00025205,7]
[391814754,1760870186499,-244.77,0.00025479,8]
[391814755,1760870208100,150.0,0.0002566,2]
[391814756,1760870290840,-1000.0,0.00027594,2]
[391814757,1760870290861,-500.0,0.00027594,2]
[391814758,1760870374789,-636.12672849,0.00030334,4]
[391814759,1760870374810,-1002.02,0.00031,2]
[391814760,1760870400477,-1002.02,0.00031174,2]
[391814761,1760870400497,-500.52718912,0.00031741,7]
[391814762,1760870400517,-666.0,0.00032487,2]
[391814764,1760870470558,150.0,0.00025205,2]
[391814765,1760870471009,172.5,0.00025805,2]
[391814766,1760870471485,195.0,0.00026405,2]
[391814767,1760870471950,217.5,0.00027005,2]
[391814768,1760870472528,240.0,0.00027605,2]
[391814769,1760870472953,262.5,0.00028205,2]
[391814770,1760870473374,187.5,0.00028805,2]
[391814772,1760870894106,223.50653367,0.00033,2]
[391814777,1760870938900,1500.0,0.00015,2]
[391814812,1760871031758,-865.79,0.00034114,10]
[391814813,1760871031768,-467.09,0.00034114,10]
[391814814,1760871031778,-401.878891,0.00034849,2]
[391814815,1760871031787,-160.0,0.00035085,2]
[391814816,1760871031797,-1600.0,0.00035107,3]
[391814817,1760871031806,-400.0,0.00035108,3]
[391814818,1760871031816,-400.0,0.00035108,3]
[391814819,1760871031826,-400.0,0.00035108,3]
[391814821,1760871031835,-400.0,0.00035108,2]
[391814823,1760871031845,-1600.0,0.00035109,3]
[391814825,1760871031854,-2103.670924,0.00035113,2]
[391814827,1760871031864,-153.44959795,0.00035212,2]
[391814829,1760871031873,-50000.0,0.00035212,2]
[391814831,1760871031882,-248.85013609,0.00035311,7]
[391814833,1760871031894,-500.0,0.00035311,7]
[391814835,1760871031903,-469.53039402,0.00035311,7]
[391814837,1760871031914,-30.46960598,0.00035311,7]
[391814839,1760871031924,-374.05507784,0.00035311,7]
[391814841,1760871031933,-500.0,0.00035311,7]
[391814843,1760871031942,-387.82332116,0.00035311,7]
[391814845,1760871031954,-53.93520615,0.00035311,7]
[391814847,1760871031963,-500.0,0.00035311,7]
[391814849,1760871031973,-632.32338246,0.00035311,7]
[391814851,1760871031982,-203.7926754,0.00035312,2]
[391814853,1760871031992,-169.5172239,0.00035586,2]
[391814855,1760871032001,-1109.47894528,0.00036541,2]
[391814857,1760871032011,-1109.47894528,0.00037,120]
[391814859,1760871032020,-894.83,0.00037554,2]
[391814861,1760871032029,-306.0,0.00037639,3]
[391814863,1760871032039,-277.0,0.00037639,3]
[391814865,1760871032048,-204.0,0.00037639,3]
[391814867,1760871032058,-560.0,0.00037639,2]
[391814869,1760871032067,-1025.0,0.0003764,3]
[391814871,1760871032076,-1012.0,0.00037787,3]
[391814873,1760871032085,-417.0,0.0003811,7]
[391814875,1760871032095,-151.0,0.00038165,2]
[391814877,1760871032107,-151.29474519,0.00038165,2]
[391814878,1760871032118,-1000.0,0.00038165,2]
[391814880,1760871032128,-1000.0,0.00038165,2]
[391814882,1760871032137,-1000.0,0.00038165,2]
[391814884,1760871032148,-1000.0,0.00038165,2]
[391814886,1760871032158,-1000.0,0.00038165,2]
[391814888,1760871032167,-1000.0,0.00038165,2]
[391814889,1760871032176,-1000.0,0.00038165,2]
[391814891,1760871032187,-1000.0,0.00038165,2]
[391814892,1760871032197,-1000.0,0.00038165,2]
[391814893,1760871032207,-777.07317498,0.00038165,2]
[391814894,1760871032216,-417.0,0.00038303,7]
[391814895,1760871032225,-417.0,0.00038339,2]
[391814896,1760871032234,-500.0,0.00038356,30]
[391814897,1760871032243,-500.0,0.00038356,30]
[391814898,1760871032252,-500.0,0.00038356,30]
[391814899,1760871032262,-500.0,0.00038356,30]
[391814900,1760871032272,-645.84,0.00038356,30]
[391814901,1760871032281,-645.84,0.00038356,30]
[391814902,1760871032290,-645.84,0.00038356,30]
[391814903,1760871032299,-419.0,0.00038436,120]
[391814904,1760871032309,-419.0,0.00038716,7]
[391814905,1760871032318,-645.84,0.00038722,30]
[391814906,1760871032327,-1423.642599,0.00038745,2]
[391814907,1760871032336,-160.0,0.000388,2]
[391814908,1760871032348,-417.0,0.00038946,7]
[391814909,1760871032357,-500.0,0.0003908,7]
[391814910,1760871032367,-500.0,0.00039131,2]
[391814911,1760871032375,-284.13342208,0.00039131,2]
[391814912,1760871032385,-500.0,0.00039131,2]
[391814913,1760871032394,-253.8515292,0.00039131,2]
[391814914,1760871032403,-500.0,0.00039186,2]
[391814915,1760871032412,-500.0,0.00039186,2]
[391814916,1760871032421,-500.0,0.00039241,2]
[391814917,1760871032431,-500.0,0.00039241,2]
[391814918,1760871032439,-500.0,0.00039295,2]
[391814919,1760871032449,-374.34700414,0.00039295,2]
[391814920,1760871032458,-260.0,0.00039348,2]
[391814921,1760871032467,-249.45,0.00039424,10]
[391814922,1760871032476,-207.88,0.00039424,10]
[391814923,1760871032485,-417.0,0.00039427,2]
[391814924,1760871032494,-3751.82114694,0.00039434,3]
[391814925,1760871032529,-1844.86052652,0.00039434,3]
[391814926,1760871032641,-715.44950418,0.00039434,3]
[391814927,1760871032654,-25645.22410206,0.00039434,3]
[391814928,1760871032664,-1949.7,0.00039444,7]
[391814929,1760871032674,-419.0,0.00039498,7]
[391814930,1760871032683,-417.0,0.00039634,2]
[391814931,1760871032692,-1635.71868263,0.00039665,2]
[391814932,1760871032702,-417.0,0.00039676,7]
[391814933,1760871032711,-252.53857026,0.0003968,4]
[391814934,1760871032721,-500.0,0.00039687,30]
[391814935,1760871032731,-1635.71868259,0.00039698,2]
[391814936,1760871032740,-500.0,0.00039707,30]
[391814937,1760871032750,-158.182511,0.00039718,2]
[391814938,1760871032759,-1635.71868259,0.0003973,2]
[391814939,1760871032769,-645.84,0.00039735,30]
[391814940,1760871032779,-299.34,0.00039736,10]
[391814941,1760871032788,-501.84,0.00039745,30]
[391814942,1760871032798,-645.84,0.00039745,30]
[391814943,1760871032807,-645.84,0.00039745,30]
[391814944,1760871032817,-2175.6569549,0.00039746,2]
[391814945,1760871032827,-35189.9869628,0.00039746,2]
[391814946,1760871032836,-1635.71868259,0.00039763,2]
[391814947,1760871032847,-31957.3552797,0.00039765,3]
[391814948,1760871032857,-500.01050946,0.00039773,2]
[391814949,1760871032866,-500.0,0.00039773,2]
[391814950,1760871032876,-645.84,0.00039774,30]
[391814951,1760871032885,-2444.8897054,0.00039775,2]
[391814952,1760871032894,-645.84,0.0003978,30]
[391814953,1760871032903,-645.84,0.0003978,30]
[391814954,1760871032912,-645.84,0.0003978,30]
[391814955,1760871032921,-645.84,0.0003978,30]
[391814956,1760871032931,-645.84,0.0003978,30]
[391814957,1760871032939,-645.84,0.0003978,30]
[391814958,1760871032948,-645.84,0.0003978,30]
[391814959,1760871032957,-645.84,0.0003978,30]
[391814960,1760871032967,-645.84,0.0003978,30]
[391814961,1760871032976,-645.84,0.0003978,30]
[391814962,1760871032985,-645.84,0.0003978,30]
[391814963,1760871032995,-147130.99099241,0.0003978,3]
[391814964,1760871033006,-44613.14068559,0.0003978,3]
[391814965,1760871033015,-419.0,0.00039787,2]
[391814966,1760871033025,-645.84,0.00039789,30]
[391814967,1760871033035,-645.84,0.00039789,30]
[391814968,1760871033044,-645.84,0.00039789,30]
[391814969,1760871033054,-645.84,0.00039789,30]
[391814970,1760871033064,-646.05643876,0.00039789,30]
[391814971,1760871033073,-370000.0,0.0003979,2]
[391814972,1760871033083,-1635.71868259,0.00039795,2]
[391814973,1760871033093,-417.0,0.00039831,2]
[391814974,1760871033107,-17936.86,0.0003989,120]
[391814975,1760871033117,-276091.52970921,0.00039895,30]
[391814976,1760871033129,-507.2010556,0.00039895,30]
[391815008,1760871037751,-262.72578178,0.00037639,15]
[391815010,1760871037760,-498.24487624,0.00037639,15]
[391815012,1760871037769,-313133.45722483,0.00039895,30]
[391815014,1760871037780,-293.890352,0.00039895,30]
[391815016,1760871037791,-3450.91655475,0.00039895,30]
[391815019,1760871037802,-17560.76976318,0.00039895,30]
[391815021,1760871037817,-1453.0,0.00039895,30]
[391815024,1760871037832,-94669.54430828,0.00039895,30]
[391815026,1760871037843,-2679.99793369,0.00039895,30]
[391815124,1760871039977,-3290.26084172,0.00039895,30]
[391815126,1760871039989,-13198.73105722,0.00039895,30]
[391815434,1760871042721,-3076.64470159,0.00039895,30]
[391815446,1760871042829,-3925.59999999,0.00039895,30]
[391815963,1760871226718,11094.2526691,0.0003419,120]
[391815969,1760871603856,2004.0,0.0003,2]
[391815970,1760871652561,11498.54718912,0.0003,120]
[391815971,1760871676116,19948.97281088,0.00029,120]
[391815972,1760871979146,3880.0,0.00029041,120]
[391815974,1760872005929,198.22685,0.00013699,2]
[391815975,1760872006117,198.22685,0.00020187,2]
[391816040,1760872231863,-198.22685,0.00026676,2]
[391816042,1760872231872,-200.0,0.00030098,2]
[391816044,1760872231882,-213.83295614,0.00031006,2]
[391816054,1760872231969,-228.30708786,0.00031006,2]
[391816056,1760872231978,-400.0,0.0003196,2]
[391816058,1760872231987,-1057.0,0.0003196,3]
[391816060,1760872231997,-6250.0,0.00031961,120]
[391816062,1760872232006,-215.73830608,0.00032734,2]
[391816063,1760872232015,-949.8863495,0.00033025,2]
[391816065,1760872232025,-198.22685,0.00033165,2]
[391816067,1760872232034,-635.85313536,0.00033999,30]
[391816069,1760872232043,-1254.91736651,0.00034,120]
[391816071,1760872232052,-21903.22506252,0.00034,7]
[391816073,1760872232060,-22191.42725619,0.00034199,2]
[391816216,1760872240129,-943.78,0.00029981,2]
[391816218,1760872240140,-1887.56,0.00032706,2]
[391816220,1760872240150,-348.77141337,0.00034198,7]
[391816222,1760872240160,-183.90804724,0.00034198,7]
[391816224,1760872240170,-27808.57274381,0.00034199,2]
[391816226,1760872240179,-560.0,0.00034376,2]
[391816228,1760872240189,-1254.91736651,0.00035,120]
[391816230,1760872240199,-2831.34,0.00035432,2]
[391816231,1760872240209,-1254.91736651,0.000361,120]
[391816233,1760872240218,-5056.7238242,0.00036355,2]
[391816235,1760872240228,-554.73947264,0.00036541,2]
[391816237,1760872240237,-2763.6769939,0.00036685,2]
[391816239,1760872240246,-844.81719626,0.00036685,2]
[391816241,1760872240255,-411.0,0.00036939,2]
[391816243,1760872240264,-554.73947264,0.00037,120]
[391816244,1760872240273,-19174.4131679,0.0003708,3]
[391816246,1760872240282,-1254.91736651,0.000371,120]
[391816249,1760872240292,-6250.0,0.00037288,120]
[391816251,1760872240301,-1999.0,0.00038033,120]
[391816252,1760872240311,-11816.54359138,0.00038045,3]
[391816310,1760872242824,-1028.00821494,0.00038045,3]
[391816312,1760872242835,-4492.7077019,0.00038045,3]
[391816317,1760872242878,-256.2,0.00038045,3]
[391816375,1760872246006,-1580.95365968,0.00038045,3]
[391816376,1760872246116,-173.23,0.00038045,10]
[391816377,1760872246126,-866.17,0.00038045,10]
[391816378,1760872246135,-10061.60775046,0.00038055,3]
[391816380,1760872782609,1834.0,0.00034144,30]
[391816388,1760873310107,6815.0348551,0.00029,120]
[391816389,1760873314951,27006.96329706,0.00028,120]
[391816392,1760873323657,2987.22,0.00024142,2]
[391816393,1760873323678,17012.8,0.00024142,2]
[391816459,1760873432106,-300.0,0.00027499,2]
[391816461,1760873432115,-300.0,0.00027499,2]
[391816463,1760873432125,-300.0,0.00027499,2]
[391816465,1760873432134,-300.0,0.00027499,2]
[391816467,1760873432144,-1200.0,0.00027499,2]
[391816469,1760873432153,-200.0,0.00027499,2]
[391816471,1760873432163,-29375.06964435,0.000275,2]
[391816473,1760873432172,-251.9495029,0.00028247,28]
[391816475,1760873432181,-302.85369971,0.00028981,2]
[391816477,1760873432190,-60022.71032807,0.0002904,2]
[391816479,1760873432200,-210.47,0.00029835,10]
[391816481,1760873432210,-50000.0,0.00029845,2]
[391816483,1760873432219,-1164.0,0.00029845,2]
[391816485,1760873432229,-198.35,0.0002999,10]
[391816487,1760873432239,-252.56,0.0002999,10]
[391816489,1760873432250,-250.0,0.0003,7]
[391816491,1760873432259,-9376.79154543,0.0003,120]
[391816494,1760873432271,-1332.497,0.0003,120]
[391816496,1760873432282,-1767.96724389,0.0003,120]
[391816498,1760873432291,-14905.5582575,0.0003,120]
[391816500,1760873432300,-374.77,0.0003,2]
[391816501,1760873432310,-4006.49248191,0.0003015,120]
[391816503,1760873432319,-16526.8694308,0.0003112,2]
[391816505,1760873432328,-153.61,0.00031405,15]
[391816507,1760873432338,-153.61,0.00031505,15]
[391816509,1760873432347,-153.61,0.00031605,15]
[391816511,1760873432356,-153.61,0.00031705,15]
[391816513,1760873432366,-153.6475417,0.00031805,15]
[391816515,1760873432376,-4862.11343733,0.00033582,2]
[391816517,1760873432385,-256.0,0.00033949,3]
[391816519,1760873432394,-500.0,0.0003395,5]
[391816521,1760873432403,-297.29,0.0003397,3]
[391816522,1760873432413,-594.58,0.0003398,3]
[391816523,1760873432422,-891.88,0.0003398,3]
[391816524,1760873432432,-1189.16,0.0003399,3]
[391816525,1760873432441,-1505.9008398,0.00034,120]
[391816526,1760873432451,-180.17322481,0.00034043,2]
[391816527,1760873432460,-500.08,0.000341,5]
[391816528,1760873432469,-416.67324139,0.00034142,7]
[391816530,1760873432478,-400.0,0.00034142,7]
[391816532,1760873432488,-500.0,0.00034142,7]
[391816534,1760873432498,-650.0,0.00034142,7]
[391816536,1760873432507,-381.30124558,0.00034142,7]
[391816538,1760873432516,-500.0,0.00034142,7]
[391816539,1760873432525,-500.0,0.00034142,7]
[391816541,1760873432534,-500.0,0.00034142,7]
[391816543,1760873432543,-500.0,0.00034142,7]
[391816545,1760873432553,-350.79272789,0.00034142,7]
[391816572,1760873437973,-244.13998936,0.00029039,2]
[391816574,1760873437983,-400.0,0.00034144,2]
[391816575,1760873437992,-400.0,0.00034144,2]
[391816577,1760873438002,-500.0,0.00034144,2]
[391816579,1760873438011,-600.0,0.00034144,2]
[391816581,1760873438021,-500.0,0.00034144,2]
[391816584,1760873438031,-500.0,0.00034144,2]
[391816586,1760873438041,-500.0,0.00034144,2]
[391816587,1760873438051,-500.0,0.00034144,2]
[391816590,1760873438060,-500.0,0.00034144,2]
[391816592,1760873438070,-700.0,0.00034144,2]
[391816594,1760873438080,-500.0,0.00034144,2]
[391816596,1760873438089,-500.0,0.00034144,2]
[391816598,1760873438099,-500.0,0.00034144,2]
[391816600,1760873438109,-498.46580774,0.00034881,2]
[391816602,1760873438118,-231.32371975,0.00034923,2]
[391816604,1760873438129,-1700.28782212,0.00034924,2]
[391816606,1760873438145,-880.10770993,0.00034924,2]
[391816608,1760873438154,-1505.9008398,0.00035,120]
[391816609,1760873438164,-250.0,0.00035,7]
[391816612,1760873438173,-13037.59044643,0.00035,120]
[391816613,1760873438182,-594.58,0.0003534,3]
[391816616,1760873438192,-1189.16,0.0003535,3]
[391816618,1760873438201,-2378.32,0.0003536,3]
[391816620,1760873438211,-648.04016161,0.0003577,2]
[391816622,1760873438220,-1152.07139842,0.0003577,2]
[391816624,1760873438230,-1800.11156004,0.0003577,2]
[391816626,1760873438239,-2592.16064645,0.0003577,2]
[391816628,1760873438253,-3528.21865767,0.0003577,2]
[391816630,1760873438262,-360.02231201,0.0003577,2]
[391816632,1760873438272,-280.32299003,0.0003577,2]
[391816634,1760873438281,-504.58138206,0.0003577,2]
[391816636,1760873438291,-897.0335681,0.0003577,2]
[391816637,1760873438301,-1401.61495016,0.0003577,2]
[391816639,1760873438311,-2016.3072027,0.0003577,2]
[391816642,1760873438321,-4227.3,0.000358,14]
[391816644,1760873438331,-277.36973632,0.00035925,2]
[391816646,1760873438341,-1505.9008398,0.00036,120]
[391816648,1760873438350,-158.18252,0.00036344,2]
[391816650,1760873438360,-7890.92640835,0.00036789,60]
[391816652,1760873438369,-871.71,0.00036798,2]
[391816653,1760873438378,-277.36973632,0.00037,120]
[391816655,1760873438388,-374.77,0.00037,2]
[391816657,1760873438397,-1505.9008398,0.000371,120]
[391816659,1760873438409,-503.03277051,0.00037372,5]
[391816661,1760873438418,-250.0,0.000375,7]
[391816663,1760873438429,-658.3961225,0.00037631,2]
[391816665,1760873438438,-411.0,0.00037633,2]
[391816667,1760873438448,-19581.1360112,0.00037642,3]
[391816669,1760873438457,-294.13225872,0.00037844,2]
[391816671,1760873438467,-175.39,0.00037925,10]
[391816674,1760873438477,-1999.0,0.00037934,120]
[391816676,1760873438486,-19581.1360112,0.00037934,3]
[391816678,1760873438496,-1409.345273,0.00037944,120]
[391816680,1760873438506,-1409.345273,0.00037944,120]
[391816691,1760873438515,-1409.345273,0.00037944,120]
[391816694,1760873438621,-1409.345273,0.00037944,120]
[391816696,1760873438632,-151.0,0.00037944,120]
[391816698,1760873438642,-1234.565416,0.00037944,120]
[391816700,1760873438651,-1234.565416,0.00037944,120]
[391816702,1760873438661,-4489.87411,0.00037944,120]
[391816704,1760873438671,-1234.565416,0.00037944,120]
[391816706,1760873438680,-4489.87411,0.00037944,120]
[391816708,1760873438689,-271.647124,0.00037944,120]
[391816710,1760873438698,-151.0,0.00037944,120]
[391816712,1760873438707,-1234.565416,0.00037944,120]
[391816714,1760873438717,-4489.87411,0.00037944,120]
[391816716,1760873438726,-271.647124,0.00037944,120]
[391816718,1760873438735,-151.0,0.00037944,120]
[391816720,1760873438745,-4489.87411,0.00037944,120]
[391816722,1760873438755,-271.647124,0.00037944,120]
[391816724,1760873438764,-151.0,0.00037944,120]
[391816726,1760873438774,-271.647124,0.00037944,120]
[391816728,1760873438783,-151.0,0.00037944,120]
[391816730,1760873438792,-151.0,0.00037944,120]
[391816732,1760873438801,-151.0,0.00037944,120]
[391816734,1760873438810,-151.0,0.00037944,120]
[391816736,1760873438820,-151.0,0.00037944,120]
[391816738,1760873438829,-151.0,0.00037944,120]
[391816739,1760873438838,-276.13397,0.00037944,120]
[391816741,1760873438848,-276.13397,0.00037944,120]
[391816744,1760873438857,-276.13397,0.00037944,120]
[391816745,1760873438867,-276.13397,0.00037944,120]
[391816748,1760873438879,-151.0,0.00037944,120]
[391816750,1760873438890,-193.389855,0.00037944,120]
[391816752,1760873438899,-151.0,0.00037944,120]
[391816754,1760873438908,-193.389855,0.00037944,120]
[391816756,1760873438917,-151.280324,0.00037944,2]
[391816757,1760873438929,-193.389855,0.00037944,120]
[391816759,1760873438939,-151.0,0.00037944,120]
[391816761,1760873438950,-193.389855,0.00037944,120]
[391816764,1760873438959,-138953.31860061,0.00037945,3]
[391816766,1760873438972,-9275.82456618,0.00037945,3]
[391816768,1760873438987,-3219.19648299,0.00037945,3]
[391816771,1760873438998,-3431.84241583,0.00037945,3]
[391816877,1760873440030,-262.14860012,0.00027499,2]
[391816893,1760873440170,-237.85139988,0.00027499,2]
[391816895,1760873440179,-500.0,0.00027499,2]
[391816897,1760873440189,-5.56860012,0.00027499,2]
[391817185,1760873443166,-477.95347826,0.00027499,2]
[391817237,1760873508605,150.0,0.00025205,2]
[391817238,1760873509174,172.5,0.00025805,2]
[391817240,1760873639628,-195.0,0.00026405,2]
[391817241,1760873639650,-159.22829688,0.00026905,2]
[391817242,1760873720091,3076.35504338,0.00034139,120]
[391817245,1760874069722,178.254289,0.000284,120]
[391817246,1760874076204,-217.5,0.00027005,2]
[391817247,1760874076223,-164.38283212,0.00027505,2]
[391817248,1760874076244,-240.0,0.00027605,2]
[391817249,1760874076266,-262.5,0.00028205,2]
[391817250,1760874076286,-666.0,0.00028302,2]
[391817251,1760874076307,-178.254289,0.000284,2]
[391817252,1760874076327,-285.0,0.00028805,2]
[391817253,1760874076347,-172.5,0.00029405,2]
[391817254,1760874119855,986.36287888,0.0002931,2]